fUSD/lending_fUSD_20250526
["ID","MTS","AMOUNT","RATE_DAILY","PERIOD"]
[362404773,1748253099537,-243.22904252,0.00045864,30]
[362404774,1748253099547,-211.76312096,0.00045864,30]
[362404775,1748253099557,-150.0,0.00045864,30]
[362404776,1748253099567,-345.36307,0.00045873,120]
[362404777,1748253099577,-2909.78040172,0.000459,119]
[362404778,1748253099586,-150.0,0.00045905,30]
[362404779,1748253099595,-150.0,0.00045905,30]
[362404780,1748253099605,-243.22904252,0.00045911,30]
[362404781,1748253099615,-211.76312096,0.00045911,30]
[362404782,1748253099624,-150.0,0.00045925,30]
[362404783,1748253099633,-150.0,0.00045935,30]
[362404784,1748253099642,-2865.48264252,0.00045945,47]
[362404785,1748253099652,-243.22904252,0.00045958,30]
[362404786,1748253099662,-211.76312096,0.00045958,30]
[362404787,1748253099672,-150.0,0.00045963,30]
[362404788,1748253099682,-5079.9501044,0.00045969,2]
[362404789,1748253099692,-122283.7753688,0.00045969,2]
[362404790,1748253099701,-14327.1677132,0.00045969,2]
[362404791,1748253099711,-150.0,0.00045991,120]
[362404792,1748253099720,-150.0,0.00045997,30]
[362404793,1748253099730,-50000.0,0.00046,46]
[362404794,1748253099739,-250.0,0.00046,10]
[362404795,1748253099749,-2486.960502,0.00046,12]
[362404796,1748253099759,-598.56953081,0.00046,5]
[362404797,1748253099768,-25979.47751057,0.00046,10]
[362404798,1748253099779,-9034.34929275,0.00046,120]
[362404799,1748253099788,-20165.37563225,0.00046,30]
[362404800,1748253099797,-1000.0,0.00046,30]
[362404801,1748253099807,-3123.00448093,0.00046,30]
[362404802,1748253099817,-899100.0,0.00046,120]
[362404803,1748253099826,-16765.0,0.00046,30]
[362404804,1748253099836,-243.22904252,0.00046006,30]
[362404805,1748253099846,-211.76312096,0.00046006,30]
[362404806,1748253099856,-150.0,0.00046006,30]
[362404807,1748253099867,-500.0,0.00046022,120]
[362404808,1748253099877,-452.35,0.00046027,120]
[362404809,1748253099886,-150.0,0.00046027,30]
[362404810,1748253099896,-150.0,0.00046027,30]
[362404811,1748253099906,-150.0,0.00046027,30]
[362404812,1748253099916,-150.0,0.00046027,30]
[362404813,1748253099925,-150.0,0.00046041,30]
[362404814,1748253099935,-838.61,0.00046042,2]
[362404815,1748253099945,-150.0,0.00046044,120]
[362404816,1748253099955,-243.22904252,0.00046053,30]
[362404817,1748253099964,-211.76312096,0.00046053,30]
[362404818,1748253099974,-150.0,0.00046068,30]
[362404819,1748253099983,-2110.0,0.00046075,30]
[362404820,1748253099993,-243.22904252,0.000461,30]
[362404821,1748253100003,-211.76312096,0.000461,30]
[362404822,1748253100012,-150.0,0.00046107,120]
[362404823,1748253100164,-150.0,0.0004614,30]
[362404824,1748253100175,-195.14,0.00046143,2]
[362404825,1748253100185,-243.22904252,0.00046147,30]
[362404826,1748253100195,-211.76312096,0.00046147,30]
[362404827,1748253100205,-150.0,0.00046147,30]
[362404828,1748253100215,-150.0,0.00046147,30]
[362404829,1748253100224,-150.0,0.00046165,30]
[362404830,1748253100234,-150.0,0.00046182,30]
[362404831,1748253100243,-150.0,0.00046182,30]
[362404832,1748253100253,-243.22904252,0.00046194,30]
[362404833,1748253100263,-211.76312096,0.00046194,30]
[362404834,1748253100273,-150.0,0.00046212,30]
[362404835,1748253100283,-150.0,0.00046212,30]
[362404836,1748253100293,-243.22904252,0.00046241,30]
[362404837,1748253100302,-211.76312096,0.00046241,30]
[362404838,1748253100312,-150.0,0.00046252,30]
[362404839,1748253100321,-150.0,0.00046283,30]
[362404840,1748253100331,-243.22904252,0.00046288,30]
[362404841,1748253100341,-211.76312096,0.00046288,30]
[362404842,1748253100350,-150.0,0.00046288,30]
[362404843,1748253100360,-1464.5,0.00046301,2]
[362404844,1748253100371,-243.22904252,0.00046335,30]
[362404845,1748253100381,-211.76312096,0.00046335,30]
[362404846,1748253100391,-997.0205,0.00046337,3]
[362404847,1748253100401,-2000.0,0.00046337,3]
[362404848,1748253100412,-2000.0,0.00046337,3]
[362404849,1748253100422,-2000.0,0.00046337,3]
[362404850,1748253100432,-150.0,0.00046355,30]
[362404851,1748253100441,-150.0,0.00046358,30]
[362404852,1748253100451,-150.0,0.00046368,30]
[362404853,1748253100460,-243.22904252,0.00046382,30]
[362404854,1748253100470,-211.76312096,0.00046382,30]
[362404855,1748253100479,-300.0,0.00046412,60]
[362404856,1748253100488,-150.0,0.00046427,30]
[362404857,1748253100498,-888.0,0.00046428,120]
[362404858,1748253100507,-243.22904252,0.00046429,30]
[362404859,1748253100517,-211.76312096,0.00046429,30]
[362404860,1748253100526,-150.0,0.00046429,30]
[362404861,1748253100535,-2062.118,0.0004643,120]
[362404862,1748253100544,-150.0,0.00046464,30]
[362404863,1748253100554,-243.22904252,0.00046476,30]
[362404864,1748253100563,-211.76312096,0.00046476,30]
[362404865,1748253100573,-150.0,0.00046498,30]
[362404866,1748253100584,-4012.63774624,0.000465,110]
[362404867,1748253100594,-160.0,0.000465,61]
[362404868,1748253100603,-160.0,0.000465,61]
[362404869,1748253100612,-2952.41995435,0.000465,60]
[362404870,1748253100622,-161.8,0.000465,102]
[362404871,1748253100632,-243.22904252,0.00046523,30]
[362404872,1748253100643,-211.76312096,0.00046523,30]
[362404873,1748253100652,-150.0,0.0004654,120]
[362404874,1748253100662,-150.0,0.0004654,120]
[362404875,1748253100671,-150.0,0.00046548,120]
[362404876,1748253100680,-2014.22419712,0.0004655,120]
[362404877,1748253100690,-2000.0,0.0004655,120]
[362404878,1748253100699,-156.0,0.00046569,30]
[362404879,1748253100708,-500.0,0.0004657,120]
[362404880,1748253100719,-217.0,0.0004657,30]
[362404881,1748253100729,-300.0,0.0004657,3]
[362404882,1748253100738,-700.0,0.0004657,3]
[362404883,1748253100748,-220.0,0.0004657,30]
[362404884,1748253100758,-211.0,0.0004657,30]
[362404885,1748253100767,-211.0,0.0004657,30]
[362404886,1748253100777,-243.22904252,0.0004657,30]
[362404887,1748253100786,-210.0,0.0004657,30]
[362404888,1748253100795,-399.0,0.0004657,30]
[362404889,1748253100805,-150.19123628,0.0004657,30]
[362404890,1748253100814,-211.76312096,0.0004657,30]
[362404891,1748253100824,-193.27463324,0.0004657,30]
[362404892,1748253100833,-168.90506797,0.0004657,30]
[362404893,1748253100842,-156.37306195,0.0004657,30]
[362404894,1748253100852,-153.13960793,0.0004657,30]
[362404895,1748253100862,-151.40318422,0.0004657,30]
[362404896,1748253100872,-168.38222932,0.0004657,30]
[362404897,1748253100882,-160.74368221,0.0004657,30]
[362404898,1748253100893,-152.02050985,0.0004657,30]
[362404899,1748253100902,-194.95500139,0.0004657,30]
[362404900,1748253100912,-1077.0,0.00046575,30]
[362404901,1748253100921,-199.5341028,0.00046575,30]
[362404902,1748253100931,-1077.0,0.00046575,30]
[362404903,1748253100940,-3333.2475,0.00046575,12]
[362404904,1748253100950,-1036.35295965,0.00046575,60]
[362404905,1748253100959,-2110.0,0.00046575,30]
[362404906,1748253100971,-3068.7019,0.000466,2]
[362404907,1748253100982,-3068.7019,0.000466,2]
[362404908,1748253100991,-2136.9209,0.000466,2]
[362404909,1748253101001,-2136.9209,0.000466,2]
[362404910,1748253101011,-3381.4823,0.000466,2]
[362404911,1748253101020,-3381.4823,0.000466,2]
[362404912,1748253101030,-150.0,0.00046678,120]
[362404913,1748253101039,-2864.0782,0.0004669,49]
[362404914,1748253101050,-1319.49824812,0.000469,2]
[362404915,1748253101062,-300.0,0.00046959,60]
[362404916,1748253101071,-50000.0,0.00047,47]
[362404917,1748253101081,-1500.0,0.00047,120]
[362404918,1748253101091,-50000.0,0.00047,35]
[362404919,1748253101102,-598.91830357,0.00047,30]
[362404920,1748253101112,-10000.0,0.00047,120]
[362404921,1748253101121,-5737.0,0.00047,30]
[362404922,1748253101132,-36649.0,0.00047,120]
[362404923,1748253101141,-284.03864757,0.00047,120]
[362404924,1748253101152,-1574.0,0.00047,120]
[362404925,1748253101163,-1050.0,0.00047,2]
[362404926,1748253101172,-2110.0,0.00047075,30]
[362404927,1748253101182,-635.06817108,0.00047118,120]
[362404928,1748253101191,-150.0,0.00047121,120]
[362404929,1748253101201,-8840.7,0.00047289,117]
[362404930,1748253101210,-150.0,0.00047321,120]
[362404931,1748253101219,-1170.2890609,0.0004739,120]
[362404932,1748253101230,-452.35,0.00047396,120]
[362404933,1748253101240,-159.0,0.000474,120]
[362404934,1748253101250,-168.0,0.000474,120]
[362404935,1748253101260,-50000.0,0.000475,36]
[362404936,1748253101270,-500.0,0.000475,30]
[362404937,1748253101280,-20000.0,0.000475,120]
[362404938,1748253101289,-1254.57039735,0.000475,120]
[362404939,1748253101299,-300.0,0.00047507,60]
[362404940,1748253101309,-2110.0,0.00047575,30]
[362404941,1748253101319,-12000.0,0.00047586,8]
[362404942,1748253101329,-5253.68634822,0.000476,2]
[362404943,1748253101339,-150.0,0.00047621,120]
[362404944,1748253101349,-882.22,0.00047671,30]
[362404945,1748253101359,-1160.15,0.00047671,30]
[362404946,1748253101368,-353.71,0.00047671,30]
[362404947,1748253101378,-353.71,0.00047671,30]
[362404948,1748253101388,-353.71,0.00047671,30]
[362404949,1748253101398,-1160.15,0.00047671,30]
[362404950,1748253101408,-1158.71,0.00047671,30]
[362404951,1748253101418,-353.71,0.00047671,30]
[362404952,1748253101427,-353.71,0.00047671,30]
[362404953,1748253101437,-277.13,0.00047671,30]
[362404954,1748253101446,-162.96,0.00047671,30]
[362404955,1748253101456,-170.26,0.00047671,30]
[362404956,1748253101466,-1013.22,0.000478,120]
[362404957,1748253101476,-205.97147947,0.000478,30]
[362404958,1748253101485,-150.0,0.00047822,120]
[362404959,1748253101494,-888.0,0.00047857,120]
[362404960,1748253101504,-2000.0,0.0004789,49]
[362404961,1748253101513,-2000.0,0.000479,2]
[362404962,1748253101523,-3636.27,0.00047945,13]
[362404963,1748253101533,-200.36,0.00047945,4]
[362404964,1748253101543,-150.0,0.0004798,120]
[362404965,1748253101552,-1000.0,0.00047999,120]
[362404966,1748253101562,-50000.0,0.00048,48]
[362404967,1748253101572,-117876.90713441,0.00048,120]
[362404968,1748253101581,-2000.0,0.00048,120]
[362404969,1748253101590,-70000.0,0.00048,38]
[362404970,1748253101600,-737746.86510501,0.00048,120]
[362404971,1748253101610,-543.04004207,0.00048,120]
[362404972,1748253101620,-285.0,0.00048,120]
[362404973,1748253101629,-1012.94,0.00048,120]
[362404974,1748253101638,-11574.0,0.00048,90]
[362404975,1748253101648,-31000.0,0.00048,120]
[362404976,1748253101658,-500.0,0.00048,120]
[362404977,1748253101667,-6745.48536177,0.00048,120]
[362404978,1748253101677,-325.0,0.00048,120]
[362404979,1748253101686,-38338.97504496,0.00048,120]
[362404980,1748253101695,-5307.66208919,0.00048,120]
[362404981,1748253101705,-3234.80004134,0.00048,120]
[362404982,1748253101715,-300.0,0.00048055,60]
[362404983,1748253101724,-2110.0,0.00048075,30]
[362404984,1748253101733,-150.0,0.00048151,120]
[362404985,1748253101743,-1000000.0,0.0004818,120]
[362404986,1748253101753,-150.0,0.00048283,120]
[362404987,1748253101762,-365.59662245,0.000483,120]
[362404988,1748253101772,-838.61,0.00048306,2]
[362404989,1748253101782,-1347.72154133,0.00048309,120]
[362404990,1748253101792,-155.16130237,0.0004835,2]
[362404991,1748253101801,-409.58730793,0.00048356,120]
[362404992,1748253101812,-460.2,0.00048356,30]
[362404993,1748253101822,-460.2,0.00048356,30]
[362404994,1748253101831,-460.2,0.00048356,30]
[362404995,1748253101841,-460.2,0.00048356,30]
[362404996,1748253101850,-460.2,0.00048356,30]
[362404997,1748253101861,-460.2,0.00048356,30]
[362404998,1748253101871,-460.2,0.00048356,30]
[362404999,1748253101880,-460.2,0.00048356,30]
[362405000,1748253101890,-460.2,0.00048356,30]
[362405001,1748253101899,-460.2,0.00048356,30]
[362405002,1748253101910,-460.2,0.00048356,30]
[362405003,1748253101919,-460.2,0.00048356,30]
[362405004,1748253101929,-460.2,0.00048356,30]
[362405005,1748253101938,-460.2,0.00048356,30]
[362405006,1748253101949,-460.2,0.00048356,30]
[362405007,1748253101958,-460.2,0.00048356,30]
[362405008,1748253101967,-460.2,0.00048356,30]
[362405009,1748253101977,-310.48,0.00048356,30]
[362405010,1748253101986,-300.0,0.00048493,30]
[362405011,1748253101996,-150.49,0.00048493,30]
[362405012,1748253102005,-327.81,0.00048493,30]
[362405013,1748253102015,-150.49,0.00048493,30]
[362405014,1748253102024,-150.0,0.00048493,30]
[362405015,1748253102034,-170.24,0.00048493,30]
[362405016,1748253102044,-459.46,0.00048493,30]
[362405017,1748253102183,-150.49,0.00048493,30]
[362405018,1748253102193,-150.49,0.00048493,30]
[362405019,1748253102204,-162.96,0.00048493,30]
[362405020,1748253102213,-162.96,0.00048493,30]
[362405021,1748253102223,-162.96,0.00048493,30]
[362405022,1748253102233,-162.96,0.00048493,30]
[362405023,1748253102242,-162.96,0.00048493,30]
[362405024,1748253102251,-150.12,0.00048493,30]
[362405025,1748253102261,-453.7,0.00048493,30]
[362405026,1748253102271,-310.82,0.00048493,30]
[362405027,1748253102280,-162.96,0.00048493,30]
[362405028,1748253102289,-453.7,0.00048493,30]
[362405029,1748253102299,-162.96,0.00048493,30]
[362405030,1748253102308,-170.26,0.00048493,30]
[362405031,1748253102318,-453.7,0.00048493,30]
[362405032,1748253102337,-162.96,0.00048493,30]
[362405033,1748253102350,-170.26,0.00048493,30]
[362405034,1748253102360,-162.96,0.00048493,30]
[362405035,1748253102370,-170.26,0.00048493,30]
[362405036,1748253102381,-162.96,0.00048493,30]
[362405037,1748253102391,-170.26,0.00048493,30]
[362405038,1748253102402,-170.26,0.00048493,30]
[362405039,1748253102412,-162.96,0.00048493,30]
[362405040,1748253102423,-170.26,0.00048493,30]
[362405041,1748253102433,-170.26,0.00048493,30]
[362405042,1748253102443,-327.5,0.00048493,30]
[362405043,1748253102453,-170.26,0.00048493,30]
[362405044,1748253102464,-170.26,0.00048493,30]
[362405045,1748253102473,-170.26,0.00048493,30]
[362405046,1748253102484,-339.73,0.00048493,30]
[362405047,1748253102494,-150.0,0.00048495,120]
[362405048,1748253102504,-1000.0,0.000485,120]
[362405049,1748253102514,-500.0,0.000485,30]
[362405050,1748253102524,-381.14657247,0.000485,120]
[362405051,1748253102534,-600.77541898,0.000485,120]
[362405052,1748253102544,-2110.0,0.00048575,30]
[362405053,1748253102554,-8030.36587948,0.000486,120]
[362405054,1748253102565,-1033858.53,0.00048642,120]
[362405055,1748253102576,-3299826.44,0.0004869,120]
[362405056,1748253102587,-1000.0,0.000487,120]
[362405057,1748253102596,-150.0,0.00048732,120]
[362405058,1748253102606,-150.0,0.00048734,120]
[362405059,1748253102617,-452.35,0.00048766,120]
[362405060,1748253102627,-4315.98421555,0.000488,120]
[362405061,1748253102638,-370.15121077,0.000488,120]
[362405062,1748253102648,-287.78306103,0.0004888,120]
[362405063,1748253102658,-433.0,0.00048896,120]
[362405064,1748253102668,-1200.17593939,0.000489,120]
[362405065,1748253102678,-3180.05070206,0.000489,120]
[362405066,1748253102688,-740.0,0.000489,17]
[362405067,1748253102698,-1077.0,0.00048904,30]
[362405068,1748253102708,-3000.0,0.0004896,46]
[362405069,1748253102719,-218.66846784,0.00048987,31]
[362405070,1748253102729,-65223.04779788,0.00048999,120]
[362405071,1748253102739,-1000.0,0.00048999,30]
[362405072,1748253102748,-5997.34859531,0.00048999,120]
[362405073,1748253102758,-50600.8943217,0.00048999,120]
[362405074,1748253102768,-50000.0,0.00049,49]
[362405075,1748253102778,-30000.0,0.00049,30]
[362405076,1748253102788,-727939.22515587,0.00049,120]
[362405077,1748253102798,-770.47986462,0.00049,30]
[362405078,1748253102808,-5000000.0,0.00049,7]
[362405079,1748253102818,-19981.83212929,0.00049,14]
[362405080,1748253102828,-1688.45095516,0.00049,60]
[362405081,1748253102839,-22094.11874926,0.00049,30]
[362405082,1748253102848,-100000.0,0.00049,20]
[362405083,1748253102858,-5000.0,0.00049,120]
[362405084,1748253102868,-13158.32404481,0.00049,15]
[362405085,1748253102879,-5193.44762767,0.00049,120]
[362405086,1748253102888,-31847.91173108,0.00049,120]
[362405087,1748253102899,-500.0,0.00049,120]
[362405088,1748253102910,-36649.0,0.00049,120]
[362405089,1748253102920,-880.27260916,0.00049,120]
[362405090,1748253102930,-364.14519023,0.00049,120]
[362405091,1748253102941,-9078.67152324,0.00049,120]
[362405092,1748253102951,-1574.0,0.00049,120]
[362405093,1748253102961,-48107.66171166,0.00049,120]
[362405094,1748253102972,-1100.0,0.00049,2]
[362405095,1748253102982,-5070.0,0.00049068,120]
[362405096,1748253102992,-2110.0,0.00049075,30]
[362405097,1748253103001,-3223.0,0.00049112,120]
[362405098,1748253103011,-5165.0,0.00049198,120]
[362405099,1748253103021,-50002.0,0.000492,120]
[362405100,1748253103032,-888.0,0.00049285,120]
[362405101,1748253103042,-2000.0,0.000493,120]
[362405102,1748253103052,-10000.0,0.00049315,120]
[362405103,1748253103064,-10000.0,0.00049315,120]
[362405104,1748253103074,-500.0,0.00049315,120]
[362405105,1748253103084,-159.45988314,0.00049315,120]
[362405106,1748253103095,-320.0,0.00049315,30]
[362405107,1748253103105,-320.0,0.00049315,30]
[362405108,1748253103115,-10000.0,0.00049315,120]
[362405109,1748253103125,-3939.2925,0.00049315,14]
[362405110,1748253103137,-150.0,0.00049315,30]
[362405111,1748253103147,-469.26,0.00049315,30]
[362405112,1748253103159,-703.34,0.00049315,30]
[362405113,1748253103168,-320.46,0.00049315,60]
[362405114,1748253103178,-280.0,0.000494,120]
[362405115,1748253103188,-20000.0,0.000494,120]
[362405116,1748253103197,-400.0,0.000494,120]
[362405117,1748253103207,-3000.0,0.0004944,46]
[362405118,1748253103217,-1600.98236828,0.000495,120]
[362405119,1748253103228,-2982.6878415,0.000495,120]
[362405120,1748253103238,-276.28,0.00049575,30]
[362405121,1748253103248,-3000.0,0.0004968,46]
[362405122,1748253103258,-295639.7,0.000497,50]
[362405123,1748253103267,-3000.0,0.0004978,46]
[362405124,1748253103277,-171411.08189747,0.000498,2]
[362405125,1748253103286,-124554.97554927,0.000498,30]
[362405126,1748253103296,-5000.0,0.000498,120]
[362405127,1748253103307,-73059.74108643,0.00049825,120]
[362405128,1748253103317,-1000.0,0.00049825,10]
[362405129,1748253103326,-15830.92129897,0.00049849,30]
[362405130,1748253103336,-3000.0,0.0004986,45]
[362405131,1748253103346,-2895.0,0.0004987,120]
[362405132,1748253103355,-3000.0,0.0004989,48]
[362405133,1748253103364,-1000.0,0.000499,120]
[362405134,1748253103374,-1000.0,0.000499,30]
[362405135,1748253103383,-1890.0,0.000499,110]
[362405136,1748253103393,-2000.0,0.000499,120]
[362405137,1748253103404,-3000.0,0.0004994,46]
[362405138,1748253103414,-2000.0,0.0004996,48]
[362405139,1748253103424,-3000.0,0.00049972,120]
[362405140,1748253103434,-2871.01743313,0.00049972,120]
[362405141,1748253103443,-42905.26563646,0.0004999,2]
[362405142,1748253103453,-5363.4563415,0.0004999,14]
[362405143,1748253103463,-32643.65809623,0.00049999,90]
[362405144,1748253103473,-1000.0,0.00049999,120]
[362405145,1748253103482,-50000.0,0.0005,50]
[362405146,1748253103491,-1140.41755458,0.0005,2]
[362405147,1748253103501,-1521.04258042,0.0005,2]
[362405148,1748253103510,-150.0,0.0005,2]
[362405149,1748253103521,-2648.6507099,0.0005,5]
[362405150,1748253103531,-1000.0,0.0005,120]
[362405151,1748253103541,-562.19175114,0.0005,60]
[362405152,1748253103553,-2000.0,0.0005,120]
[362405153,1748253103563,-5888.18975106,0.0005,60]
[362405154,1748253103574,-30000.0,0.0005,30]
[362405155,1748253103584,-10000.0,0.0005,30]
[362405156,1748253103593,-242.3473326,0.0005,120]
[362405157,1748253103603,-2000.0,0.0005,120]
[362405158,1748253103612,-500.0,0.0005,5]
[362405159,1748253103621,-4184.27359334,0.0005,120]
[362405160,1748253103631,-10000.0,0.0005,120]
[362405161,1748253103640,-183697.60323146,0.0005,120]
[362405162,1748253103649,-1000.0,0.0005,120]
[362405163,1748253103659,-570.0,0.0005,120]
[362405164,1748253103668,-6000.0,0.0005,7]
[362405165,1748253103677,-500.0,0.0005,30]
[362405166,1748253103687,-207263.34673593,0.0005,120]
[362405167,1748253103696,-156138.94510508,0.0005,120]
[362405168,1748253103705,-1318.94257392,0.0005,120]
[362405169,1748253103714,-1060.5586426,0.0005,120]
[362405170,1748253103723,-162.06262523,0.0005,120]
[362405171,1748253103732,-20058.05,0.0005,90]
[362405172,1748253103741,-7730.0,0.0005,30]
[362405173,1748253103751,-500.0,0.0005,30]
[362405174,1748253103760,-71559.01470609,0.0005,120]
[362405175,1748253103770,-267.95160336,0.0005,120]
[362405176,1748253103779,-3000.0,0.0005,45]
[362405177,1748253103788,-10812.59,0.0005,120]
[362405178,1748253103797,-99138.25328174,0.0005,120]
[362405179,1748253103807,-12514.32414061,0.0005,120]
[362405180,1748253103817,-166.89234614,0.0005,120]
[362405181,1748253103827,-373913.60433966,0.0005,120]
[362405182,1748253103838,-11623.67346544,0.0005,120]
[362405183,1748253103849,-500.0,0.0005,120]
[362405184,1748253103858,-1100.0,0.0005,60]
[362405185,1748253103867,-7652.05131344,0.0005,120]
[362405186,1748253103877,-150.0,0.0005,120]
[362405187,1748253103887,-561.99084321,0.0005,120]
[362405188,1748253103896,-16989.10981029,0.0005,14]
[362405189,1748253103906,-100000.0,0.0005,30]
[362405190,1748253103916,-500.0,0.0005,120]
[362405191,1748253103925,-584.5063436,0.0005,120]
[362405192,1748253103935,-14735.9000951,0.0005,120]
[362405193,1748253103944,-200.26,0.0005,60]
[362405194,1748253103954,-3303.47634965,0.0005,120]
[362405195,1748253104103,-24000.0,0.0005,120]
[362405196,1748253104113,-9447.66475797,0.0005,120]
[362405197,1748253104124,-5936.35191472,0.0005,120]
[362405198,1748253104134,-300.0,0.0005,60]
[362405199,1748253104143,-300.0,0.0005,60]
[362405200,1748253104153,-7181.26810545,0.00050123,120]
[362405201,1748253104164,-9971.65137361,0.00050123,120]
[362405202,1748253104174,-452.35,0.00050136,120]
[362405203,1748253104183,-207.0,0.00050422,47]
[362405204,1748253104193,-3000.0,0.0005044,48]
[362405205,1748253104203,-1250.0,0.0005044,60]
[362405206,1748253104214,-838.61,0.0005057,2]
[362405207,1748253104223,-2000.0,0.000506,2]
[362405208,1748253104233,-1515.12624257,0.00050684,15]
[362405209,1748253104243,-274.80791132,0.00050713,120]
[362405210,1748253104252,-1000.0,0.00050999,120]
[362405211,1748253104262,-50000.0,0.00051,51]
[362405212,1748253104272,-63793.16772801,0.00051,30]
[362405213,1748253104281,-150.0,0.00051,10]
[362405214,1748253104292,-2000.0,0.00051,120]
[362405215,1748253104302,-500.0,0.00051,10]
[362405216,1748253104312,-10000.0,0.00051,120]
[362405217,1748253104322,-20000.0,0.00051,120]
[362405218,1748253104332,-20000.0,0.00051,120]
[362405219,1748253104342,-21000.0,0.00051,120]
[362405220,1748253104351,-30000.0,0.00051,120]
[362405221,1748253104362,-37232.0,0.00051,120]
[362405222,1748253104371,-10615.32417839,0.00051,120]
[362405223,1748253104383,-6469.60008268,0.00051,120]
[362405224,1748253104392,-1574.0,0.00051,120]
[362405225,1748253104403,-1150.0,0.00051,2]
[362405226,1748253104414,-1077.0,0.00051349,30]
[362405227,1748253104424,-452.35832452,0.00051506,120]
[362405228,1748253104434,-1000.0,0.00051652,30]
[362405229,1748253104443,-717721.33133948,0.0005169,120]
[362405230,1748253104622,-459.67,0.00027123,2]
[362405231,1748253104633,-1907.82,0.00041397,120]
[362405232,1748253104642,-806.25,0.00041644,30]
[362405233,1748253104651,-309385.52026499,0.0005169,120]
[362405234,1748253104665,-110152.1136499,0.0005169,120]
[362405235,1748253104678,-225796.0491728,0.0005169,120]
[362405236,1748253104691,-274.095,0.0005169,120]
[362405237,1748253104715,-420.0,0.00019999,2]
[362405238,1748253104724,-353.71,0.00027945,2]
[362405239,1748253104733,-234849.64100307,0.0005169,120]
[362405240,1748253104744,-70199.64698179,0.0005169,120]
[362405241,1748253104957,-1309.30446786,0.000199,2]
[362405242,1748253104978,-421.37269708,0.00019994,2]
[362405243,1748253104997,-420.0,0.00019994,2]
[362405244,1748253105017,-420.0,0.00019999,2]
[362405245,1748253105035,-192.50285119,0.00019999,2]
[362405246,1748253105056,-227.49714881,0.00019999,2]
[362405247,1748253105074,-420.0,0.00019999,2]
[362405248,1748253105088,-383.21,0.00019999,2]
[362405249,1748253105106,-253.59285118,0.00021298,2]
[362405250,1748253105163,-36.04214882,0.00021298,2]
[362405251,1748253105179,-150.0,0.00022715,2]
[362405252,1748253105195,-162.76980145,0.00023499,2]
[362405253,1748253105212,-150.46,0.00024658,2]
[362405254,1748253105229,-648.08653135,0.00041397,120]
[362405255,1748253105258,-628.0,0.00039141,30]
[362405256,1748253105268,-1259.73346865,0.00041397,120]
[362405257,1748253105278,-523.03386527,0.00041397,120]
[362405260,1748253189345,9000.0,0.0004143,120]
[362405262,1748253283864,419.99,0.00041436,40]
[362405263,1748253343671,2339498.66760213,0.00041436,120]
[362405264,1748253375333,250.0,0.00015,2]
[362405265,1748253425800,200.0,0.000151,2]
[362405266,1748253431857,-160.8651393,0.000161,2]
[362405267,1748253437374,-39.1348607,0.000161,2]
[362405268,1748253628681,201.18,0.00021945,30]
[362405269,1748253711125,167.18,0.00013699,2]
[362405271,1748253791413,-183.43434823,0.00016822,2]
[362405272,1748253796845,-179.88565177,0.00016822,2]
[362405274,1748253839015,578.43,0.00025575,120]
[362405280,1748254160084,-300.0,0.00017,2]
[362405281,1748254160107,-500.0,0.00017,2]
[362405282,1748254160128,-322.89329242,0.00017,2]